fUST/lending_fUST_20250205
["ID","MTS","AMOUNT","RATE_DAILY","PERIOD"]
[351655024,1738689052642,-500.0,0.00016849,2]
[351655025,1738689052652,-634.02,0.00016849,2]
[351655026,1738689052662,-314.91499737,0.00016849,2]
[351655027,1738689052674,-185.08500263,0.00016849,2]
[351655028,1738689052683,-500.0,0.00016849,2]
[351655029,1738689052693,-732.05,0.00016849,2]
[351655030,1738689052703,-57.22499917,0.00016849,2]
[351655031,1738689052715,-442.77500083,0.00016849,2]
[351655032,1738689052724,-500.0,0.00016849,2]
[351655033,1738689052734,-208.22499917,0.00016849,2]
[351655034,1738689052746,-289.14924021,0.00016849,2]
[351655035,1738689052755,-500.0,0.00016849,2]
[351655036,1738689052764,-328.63778954,0.00016849,2]
[351655037,1738689052776,-171.36221046,0.00016849,2]
[351655038,1738689052785,-1634.1760567,0.00016849,2]
[351655039,1738689052804,-440.69053203,0.00016849,2]
[351655040,1738689126397,500.0,0.00014164,2]
[351655041,1738689914930,162.266247,0.00013973,2]
[351655105,1738690232001,-270.145988,0.00015144,2]
[351655107,1738690232010,-65.38732401,0.00015379,2]
[351655109,1738690232021,-1035.0500002,0.00015379,2]
[351655111,1738690232033,-625.53634049,0.00015379,2]
[351655113,1738690232043,-343.26234773,0.00015491,2]
[351655115,1738690232052,-2634.17136909,0.000155,2]
[351655117,1738690232063,-3244.40358918,0.00016097,2]
[351655119,1738690232073,-894.757,0.00016099,2]
[351655121,1738690232082,-218.69694387,0.00016234,2]
[351655123,1738690232092,-300.0,0.00016332,2]
[351655125,1738690232101,-500.0,0.00016332,2]
[351655127,1738690232110,-12114.17240964,0.00016333,2]
[351655136,1738690232182,-500.0,0.00016332,2]
[351655138,1738690232193,-10968.68532352,0.00016333,2]
[351655149,1738690232284,-364.05104767,0.00016332,2]
[351655151,1738690232296,-331.76484855,0.00016333,2]
[351655153,1738690232307,-300132.95444061,0.00016333,2]
[351655157,1738690232437,-373.6340715,0.00016333,2]
[351655158,1738690232451,-1138.39764402,0.00016333,2]
[351655242,1738690238285,-344.83900729,0.00016332,2]
[351655243,1738690238297,-159.5736635,0.00016332,2]
[351655244,1738690238307,-165.8679604,0.00016332,2]
[351655245,1738690238316,-500.0,0.00016332,2]
[351655246,1738690238325,-500.0,0.00016332,2]
[351655247,1738690238336,-78.57100031,0.00016332,2]
[351655248,1738690238353,-421.42899969,0.00016332,2]
[351655249,1738690238363,-145.43453806,0.00016332,2]
[351655250,1738690238375,-354.56546194,0.00016332,2]
[351655251,1738690238385,-500.0,0.00016332,2]
[351655252,1738690238394,-500.0,0.00016332,2]
[351655253,1738690238403,-500.0,0.00016332,2]
[351655254,1738690238412,-208.48373575,0.00016332,2]
[351655255,1738690238421,-500.0,0.00016332,2]
[351655256,1738690238431,-500.0,0.00016332,2]
[351655257,1738690238440,-23791.98539535,0.00016333,2]
[351655258,1738690238453,-22058.72733395,0.00016333,2]
[351655259,1738690238465,-3502.93772859,0.00016333,2]
[351655260,1738690238476,-2625.03595768,0.00016333,2]
[351655261,1738690238487,-13603.88041532,0.00016333,2]
[351655291,1738690243074,-3242.5816127,0.00016333,2]
[351655292,1738690243157,-31.68247912,0.00016333,2]
[351655320,1738690799469,500.0,0.00014164,2]
[351655321,1738690935496,162.266247,0.00013973,2]
[351655330,1738691432237,-314.6948374,0.00015532,2]
[351655331,1738691432247,-4627.71379234,0.0001591,2]
[351655333,1738691432275,-6841.64250136,0.0001591,2]
[351655335,1738691432284,-707.62846623,0.00015971,2]
[351655337,1738691432293,-318.66250715,0.00015999,2]
[351655339,1738691432303,-500.0,0.00015999,2]
[351655341,1738691432312,-467.19025472,0.00015999,2]
[351655343,1738691432324,-32.80974528,0.00015999,2]
[351655345,1738691432334,-211.87162685,0.00015999,2]
[351655347,1738691432343,-491.82112787,0.00015999,2]
[351655351,1738691432368,-8.17887213,0.00015999,2]
[351655353,1738691432378,-1948.02112787,0.00016,2]
[351655861,1738691438154,-41458.97208943,0.00016,2]
[351655868,1738691438207,-6735.99270631,0.00016,2]
[351656058,1738691440211,-31154.668226,0.00016,2]
[351656146,1738691443172,-719.32067765,0.00016,2]
[351656147,1738691443185,-1507.55543533,0.00016,2]
[351656148,1738691443197,-972.66092911,0.00016,2]
[351656149,1738691443209,-1644.67106572,0.00016,2]
[351656150,1738691443227,-857.00245171,0.00016,2]
[351656151,1738691443240,-98026.49999999,0.00016,2]
[351656152,1738691443252,-130000.00091397,0.00016,2]
[351656153,1738691443264,-9962.33349564,0.00016,2]
[351656154,1738691443276,-9946.63339163,0.00016,2]
[351656155,1738691443289,-502.62499999,0.00016,2]
[351656156,1738691443302,-2743.7399985,0.00016,2]
[351656175,1738691446391,-395.0,0.00016,2]
[351656182,1738691472849,500.0,0.00014164,2]
[351656184,1738691897754,162.266247,0.00013973,2]
[351656190,1738692631404,3043.6255261,0.00015003,2]
[351656259,1738692632858,-542.8483003,0.00015198,2]
[351656261,1738692632868,-1847.1848033,0.00015299,2]
[351656263,1738692632878,-192.73439014,0.00015725,2]
[351656266,1738692632890,-107.26560986,0.00015725,2]
[351656268,1738692632900,-12362.34682205,0.00015726,2]
[351656270,1738692632909,-694.65178243,0.00015971,2]
[351656272,1738692632918,-1462.92175853,0.00015999,2]
[351656274,1738692632928,-77103.5162279,0.00016,2]
[351656276,1738692632939,-4952.37225024,0.00016,2]
[351656280,1738692632973,-992.81,0.00016,2]
[351656734,1738692638375,-18493.43289409,0.00016,2]
[351656754,1738692640495,-87264.86694555,0.00016,2]
[351656755,1738692640508,-28709.00168222,0.00016,2]
[351656756,1738692640518,-921.76780855,0.00016138,2]
[351656757,1738692640529,-499.0,0.00016164,2]
[351656758,1738692640539,-921.76780855,0.00016238,2]
[351656759,1738692640553,-694.65178237,0.00016247,2]
[351656760,1738692640563,-500.9899624,0.00016336,2]
[351656761,1738692640573,-921.76780855,0.00016338,2]
[351656762,1738692640583,-154.3518877,0.00016356,2]
[351656763,1738692640594,-151.0,0.000164,2]
[351656765,1738692640605,-3000.0,0.000164,2]
[351656766,1738692640615,-3000.0,0.0001641,2]
[351656767,1738692640625,-3000.0,0.0001642,2]
[351656768,1738692640636,-3000.0,0.0001643,2]
[351656769,1738692640645,-190.20795854,0.00016437,2]
[351656770,1738692640655,-151.0,0.00016438,2]
[351656771,1738692640666,-151.0,0.00016438,2]
[351656772,1738692640675,-151.0,0.00016438,2]
[351656773,1738692640686,-151.0,0.00016438,2]
[351656774,1738692640696,-151.0,0.00016438,2]
[351656775,1738692640705,-151.0,0.00016438,2]
[351656776,1738692640715,-500.0,0.00016438,2]
[351656777,1738692640725,-231.042436,0.00016438,2]
[351656778,1738692640735,-151.0,0.00016438,2]
[351656779,1738692640746,-151.0,0.00016438,2]
[351656780,1738692640756,-500.0,0.00016438,2]
[351656781,1738692640766,-500.0,0.00016438,2]
[351656782,1738692640777,-498.31219008,0.00016438,2]
[351656783,1738692640787,-223.085473,0.00016438,2]
[351656784,1738692640799,-223.085473,0.00016438,2]
[351656785,1738692640809,-500.0,0.00016438,2]
[351656786,1738692640819,-223.085473,0.00016438,2]
[351656787,1738692640828,-223.085473,0.00016438,2]
[351656788,1738692640838,-529.82955612,0.00016438,2]
[351656789,1738692640848,-500.0,0.00016438,2]
[351656790,1738692640858,-532.46810242,0.00016438,2]
[351656791,1738692640868,-500.0,0.00016438,2]
[351656792,1738692640878,-520.48823422,0.00016438,2]
[351656793,1738692640888,-151.0,0.00016438,2]
[351656794,1738692640898,-151.0,0.00016438,2]
[351656795,1738692640908,-500.0,0.00016438,2]
[351656796,1738692640918,-151.0,0.00016438,2]
[351656797,1738692640928,-505.47512091,0.00016438,2]
[351656798,1738692640938,-151.0,0.00016438,2]
[351656799,1738692640948,-151.0,0.00016438,2]
[351656800,1738692640957,-151.0,0.00016438,2]
[351656801,1738692640967,-151.0,0.00016438,2]
[351656802,1738692640977,-509.88847311,0.00016438,2]
[351656803,1738692640986,-501.31960412,0.00016438,2]
[351656804,1738692640996,-612.4938387,0.00016438,2]
[351656805,1738692641006,-1267.02,0.00016438,2]
[351656806,1738692641017,-498.99070925,0.00016438,2]
[351656807,1738692641027,-500.0,0.00016438,2]
[351656808,1738692641037,-254.00005632,0.00016438,2]
[351656809,1738692641051,-2828.48,0.00016438,2]
[351656810,1738692641061,-500.0,0.00016438,2]
[351656811,1738692641071,-500.0,0.00016438,2]
[351656812,1738692641081,-500.0,0.00016438,2]
[351656813,1738692641091,-500.0,0.00016438,2]
[351656814,1738692641102,-500.0,0.00016438,2]
[351656815,1738692641118,-221.35085405,0.00016438,2]
[351656816,1738692641128,-500.0,0.00016438,2]
[351656817,1738692641139,-500.0,0.00016438,2]
[351656818,1738692641151,-500.0,0.00016438,2]
[351656819,1738692641162,-500.0,0.00016438,2]
[351656820,1738692641172,-500.0,0.00016438,2]
[351656821,1738692641185,-500.0,0.00016438,2]
[351656822,1738692641196,-500.0,0.00016438,2]
[351656823,1738692641208,-500.0,0.00016438,2]
[351656824,1738692641219,-500.0,0.00016438,2]
[351656825,1738692641230,-495.75833282,0.00016438,2]
[351656826,1738692641240,-500.0,0.00016438,2]
[351656827,1738692641251,-572.73824076,0.00016438,2]
[351656828,1738692641261,-211.83939095,0.00016438,2]
[351656829,1738692641272,-500.0,0.00016438,2]
[351656830,1738692641282,-500.0,0.00016438,2]
[351656831,1738692641295,-500.0,0.00016438,2]
[351656832,1738692641313,-500.0,0.00016438,2]
[351656833,1738692641327,-500.0,0.00016438,2]
[351656834,1738692641338,-500.0,0.00016438,2]
[351656835,1738692641349,-500.93023398,0.00016438,2]
[351656836,1738692641360,-500.0,0.00016438,2]
[351656837,1738692641372,-510.63808648,0.00016438,2]
[351656838,1738692641383,-500.0,0.00016438,2]
[351656839,1738692641394,-500.0,0.00016438,2]
[351656840,1738692641405,-501.23704592,0.00016438,2]
[351656841,1738692641416,-500.0,0.00016438,2]
[351656842,1738692641426,-500.0,0.00016438,2]
[351656843,1738692641437,-500.0,0.00016438,2]
[351656844,1738692641447,-500.0,0.00016438,2]
[351656845,1738692641458,-151.0,0.00016438,2]
[351656846,1738692641468,-151.0,0.00016438,2]
[351656847,1738692641478,-500.0,0.00016438,2]
[351656848,1738692641489,-231.73616828,0.00016438,2]
[351656849,1738692641499,-500.0,0.00016438,2]
[351656850,1738692641509,-500.0,0.00016438,2]
[351656851,1738692641519,-500.0,0.00016438,2]
[351656852,1738692641529,-500.0,0.00016438,2]
[351656853,1738692641538,-151.0,0.00016438,2]
[351656854,1738692641553,-151.0,0.00016438,2]
[351656855,1738692641563,-500.0,0.00016438,2]
[351656856,1738692641573,-500.0,0.00016438,2]
[351656857,1738692641583,-500.0,0.00016438,2]
[351656858,1738692641593,-500.0,0.00016438,2]
[351656859,1738692641603,-292.20188299,0.00016438,2]
[351656860,1738692641613,-500.0,0.00016438,2]
[351656861,1738692641623,-296.721,0.00016438,2]
[351656862,1738692641633,-531.36,0.00016438,2]
[351656863,1738692641643,-500.0,0.00016438,2]
[351656864,1738692641652,-500.0,0.00016438,2]
[351656865,1738692641663,-500.0,0.00016438,2]
[351656866,1738692641673,-300.0,0.00016438,2]
[351656867,1738692641683,-500.0,0.00016438,2]
[351656868,1738692641693,-500.0,0.00016438,2]
[351656869,1738692641703,-500.0,0.00016438,2]
[351656870,1738692641714,-500.0,0.00016438,2]
[351656871,1738692641724,-500.0,0.00016438,2]
[351656872,1738692641734,-1000.0,0.00016438,2]
[351656873,1738692641744,-500.0,0.00016438,2]
[351656874,1738692641754,-500.0,0.00016438,2]
[351656875,1738692641763,-518.33107824,0.00016438,2]
[351656876,1738692641773,-500.0,0.00016438,2]
[351656877,1738692641783,-500.0,0.00016438,2]
[351656878,1738692641793,-500.0,0.00016438,2]
[351656879,1738692641808,-500.0,0.00016438,2]
[351656880,1738692641817,-500.0,0.00016438,2]
[351656881,1738692641827,-500.0,0.00016438,2]
[351656882,1738692641837,-500.0,0.00016438,2]
[351656883,1738692641846,-500.0,0.00016438,2]
[351656884,1738692641863,-502.26018202,0.00016438,2]
[351656885,1738692641872,-500.0,0.00016438,2]
[351656886,1738692641882,-500.0,0.00016438,2]
[351656887,1738692641891,-500.0,0.00016438,2]
[351656888,1738692641902,-500.0,0.00016438,2]
[351656889,1738692641911,-500.0,0.00016438,2]
[351656890,1738692641922,-500.0,0.00016438,2]
[351656891,1738692641932,-503.41990035,0.00016438,2]
[351656892,1738692641942,-446.34288222,0.00016438,2]
[351656893,1738692641951,-500.0,0.00016438,2]
[351656894,1738692641961,-500.0,0.00016438,2]
[351656895,1738692641971,-151.0,0.00016438,2]
[351656896,1738692641981,-500.0,0.00016438,2]
[351656897,1738692641991,-151.0,0.00016438,2]
[351656898,1738692642000,-500.0,0.00016438,2]
[351656899,1738692642010,-503.52044485,0.00016438,2]
[351656900,1738692642020,-500.0,0.00016438,2]
[351656901,1738692642030,-610.25984198,0.00016438,2]
[351656902,1738692642039,-500.0,0.00016438,2]
[351656903,1738692642051,-151.0,0.00016438,2]
[351656904,1738692642060,-500.0,0.00016438,2]
[351656905,1738692642070,-224.662925,0.00016438,2]
[351656906,1738692642079,-500.0,0.00016438,2]
[351656907,1738692642089,-500.0,0.00016438,2]
[351656908,1738692642100,-500.0,0.00016438,2]
[351656909,1738692642112,-500.0,0.00016438,2]
[351656910,1738692642123,-500.0,0.00016438,2]
[351656911,1738692642282,-500.0,0.00016438,2]
[351656912,1738692642292,-500.0,0.00016438,2]
[351656913,1738692642306,-500.0,0.00016438,2]
[351656914,1738692642315,-500.0,0.00016438,2]
[351656915,1738692642325,-273.10615024,0.00016438,2]
[351656916,1738692642334,-500.0,0.00016438,2]
[351656917,1738692642344,-500.0,0.00016438,2]
[351656918,1738692642353,-231.001033,0.00016438,2]
[351656919,1738692642362,-500.0,0.00016438,2]
[351656920,1738692642372,-1264.5,0.00016438,2]
[351656921,1738692642381,-231.001033,0.00016438,2]
[351656922,1738692642391,-501.88317149,0.00016438,2]
[351656923,1738692642401,-406.30168519,0.00016438,2]
[351656924,1738692642410,-598.95669132,0.00016438,2]
[351656925,1738692642419,-500.0,0.00016438,2]
[351656926,1738692642429,-231.001033,0.00016438,2]
[351656927,1738692642439,-231.001033,0.00016438,2]
[351656928,1738692642448,-500.0,0.00016438,2]
[351656929,1738692642457,-500.0,0.00016438,2]
[351656930,1738692642467,-502.26084643,0.00016438,2]
[351656931,1738692642476,-500.0,0.00016438,2]
[351656932,1738692642485,-500.0,0.00016438,2]
[351656933,1738692642495,-500.0,0.00016438,2]
[351656934,1738692642504,-291.52100991,0.00016438,2]
[351656935,1738692642514,-500.0,0.00016438,2]
[351656936,1738692642523,-500.0,0.00016438,2]
[351656937,1738692642532,-500.0,0.00016438,2]
[351656938,1738692642542,-713.53,0.00016438,2]
[351656939,1738692642553,-500.0,0.00016438,2]
[351656940,1738692642562,-500.0,0.00016438,2]
[351656941,1738692642571,-500.0,0.00016438,2]
[351656942,1738692642581,-500.0,0.00016438,2]
[351656943,1738692642590,-500.0,0.00016438,2]
[351656944,1738692642600,-289.39246282,0.00016438,2]
[351656945,1738692642609,-500.0,0.00016438,2]
[351656946,1738692642619,-500.0,0.00016438,2]
[351656947,1738692642628,-500.0,0.00016438,2]
[351656948,1738692642645,-601.70176474,0.00016438,2]
[351656949,1738692642657,-500.0,0.00016438,2]
[351656950,1738692642667,-500.0,0.00016438,2]
[351656951,1738692642677,-500.0,0.00016438,2]
[351656952,1738692642687,-500.0,0.00016438,2]
[351656953,1738692642697,-500.0,0.00016438,2]
[351656954,1738692642707,-501.96832338,0.00016438,2]
[351656955,1738692642717,-500.0,0.00016438,2]
[351656956,1738692642727,-500.0,0.00016438,2]
[351656957,1738692642737,-500.0,0.00016438,2]
[351656958,1738692642747,-500.0,0.00016438,2]
[351656959,1738692642757,-513.21978308,0.00016438,2]
[351656960,1738692642767,-500.0,0.00016438,2]
[351656961,1738692642777,-500.0,0.00016438,2]
[351656962,1738692642787,-522.41505801,0.00016438,2]
[351656963,1738692642799,-500.0,0.00016438,2]
[351656964,1738692642809,-500.0,0.00016438,2]
[351656965,1738692642818,-500.0,0.00016438,2]
[351656966,1738692642828,-500.0,0.00016438,2]
[351656967,1738692642838,-506.13852001,0.00016438,2]
[351656968,1738692642848,-500.0,0.00016438,2]
[351656969,1738692642857,-500.0,0.00016438,2]
[351656970,1738692642867,-500.0,0.00016438,2]
[351656971,1738692642877,-500.0,0.00016438,2]
[351656972,1738692642886,-500.0,0.00016438,2]
[351656973,1738692642897,-500.0,0.00016438,2]
[351656974,1738692642906,-609.49105423,0.00016438,2]
[351656975,1738692642916,-500.0,0.00016438,2]
[351656976,1738692642926,-500.0,0.00016438,2]
[351656977,1738692642936,-426.22064647,0.00016438,2]
[351656979,1738692642945,-500.0,0.00016438,2]
[351656981,1738692642955,-500.0,0.00016438,2]
[351656982,1738692642966,-327.83614105,0.00016438,2]
[351656984,1738692642975,-500.0,0.00016438,2]
[351656985,1738692642986,-500.0,0.00016438,2]
[351656986,1738692642995,-500.0,0.00016438,2]
[351656987,1738692643005,-500.0,0.00016438,2]
[351656988,1738692643015,-500.0,0.00016438,2]
[351656989,1738692643025,-770.36,0.00016438,2]
[351656990,1738692643035,-502.32744904,0.00016438,2]
[351656991,1738692643047,-500.0,0.00016438,2]
[351656993,1738692643057,-500.0,0.00016438,2]
[351656994,1738692643067,-500.0,0.00016438,2]
[351656995,1738692643077,-500.0,0.00016438,2]
[351656996,1738692643087,-500.0,0.00016438,2]
[351656997,1738692643096,-500.0,0.00016438,2]
[351656999,1738692643106,-500.0,0.00016438,2]
[351657001,1738692643120,-831.54,0.00016438,2]
[351657003,1738692643130,-500.0,0.00016438,2]
[351657004,1738692643140,-500.0,0.00016438,2]
[351657005,1738692643151,-500.0,0.00016438,2]
[351657007,1738692643162,-502.01266345,0.00016438,2]
[351657009,1738692643172,-502.64196636,0.00016438,2]
[351657011,1738692643182,-500.0,0.00016438,2]
[351657013,1738692643192,-500.0,0.00016438,2]
[351657014,1738692643202,-200.0,0.00016438,2]
[351657015,1738692643213,-500.0,0.00016438,2]
[351657016,1738692643223,-500.0,0.00016438,2]
[351657017,1738692643234,-500.0,0.00016438,2]
[351657019,1738692643244,-500.0,0.00016438,2]
[351657021,1738692643253,-1332.37,0.00016438,2]
[351657023,1738692643263,-500.0,0.00016438,2]
[351657025,1738692643272,-273.91363963,0.00016438,2]
[351657027,1738692643282,-500.0,0.00016438,2]
[351657028,1738692643292,-500.0,0.00016438,2]
[351657030,1738692643309,-500.0,0.00016438,2]
[351657031,1738692643319,-500.0,0.00016438,2]
[351657032,1738692643329,-500.0,0.00016438,2]
[351657033,1738692643338,-512.58249722,0.00016438,2]
[351657034,1738692643348,-500.0,0.00016438,2]
[351657035,1738692643357,-500.0,0.00016438,2]
[351657036,1738692643367,-500.0,0.00016438,2]
[351657037,1738692643376,-500.0,0.00016438,2]
[351657038,1738692643385,-500.0,0.00016438,2]
[351657040,1738692643395,-500.0,0.00016438,2]
[351657042,1738692643405,-500.0,0.00016438,2]
[351657044,1738692643414,-1386.91,0.00016438,2]
[351657046,1738692643423,-501.27115331,0.00016438,2]
[351657047,1738692643433,-500.0,0.00016438,2]
[351657048,1738692643442,-500.0,0.00016438,2]
[351657049,1738692643452,-500.0,0.00016438,2]
[351657051,1738692643461,-500.0,0.00016438,2]
[351657054,1738692643471,-501.19171411,0.00016438,2]
[351657055,1738692643480,-500.0,0.00016438,2]
[351657057,1738692643489,-500.0,0.00016438,2]
[351657060,1738692643499,-500.0,0.00016438,2]
[351657062,1738692643508,-500.0,0.00016438,2]
[351657064,1738692643518,-502.72180017,0.00016438,2]
[351657066,1738692643527,-151.0,0.00016438,2]
[351657067,1738692643538,-500.0,0.00016438,2]
[351657069,1738692643550,-500.0,0.00016438,2]
[351657071,1738692643559,-151.0,0.00016438,2]
[351657073,1738692643569,-503.22444644,0.00016438,2]
[351657075,1738692643579,-212.09748,0.00016438,2]
[351657077,1738692643588,-152.56661509,0.00016438,2]
[351657079,1738692643597,-212.09748,0.00016438,2]
[351657080,1738692643606,-500.0,0.00016438,2]
[351657081,1738692643616,-500.0,0.00016438,2]
[351657082,1738692643625,-1031.76,0.00016438,2]
[351657083,1738692643634,-500.0,0.00016438,2]
[351657084,1738692643643,-212.09748,0.00016438,2]
[351657085,1738692643652,-212.09748,0.00016438,2]
[351657086,1738692643661,-500.0,0.00016438,2]
[351657087,1738692643670,-504.08018422,0.00016438,2]
[351657088,1738692643680,-500.0,0.00016438,2]
[351657089,1738692643689,-500.0,0.00016438,2]
[351657090,1738692643698,-2295.56,0.00016438,2]
[351657091,1738692643708,-500.0,0.00016438,2]
[351657092,1738692643717,-500.0,0.00016438,2]
[351657093,1738692643726,-181.42952332,0.00016438,2]
[351657095,1738692643734,-500.0,0.00016438,2]
[351657097,1738692643743,-500.0,0.00016438,2]
[351657098,1738692643753,-580.39701685,0.00016438,2]
[351657100,1738692643762,-500.0,0.00016438,2]
[351657102,1738692643771,-500.0,0.00016438,2]
[351657103,1738692643781,-151.0,0.00016438,2]
[351657104,1738692643791,-151.0,0.00016438,2]
[351657106,1738692643804,-500.0,0.00016438,2]
[351657108,1738692643813,-501.14641749,0.00016438,2]
[351657110,1738692643823,-500.0,0.00016438,2]
[351657112,1738692643833,-500.0,0.00016438,2]
[351657114,1738692643843,-500.0,0.00016438,2]
[351657116,1738692643852,-500.0,0.00016438,2]
[351657118,1738692643862,-171.342047,0.00016438,2]
[351657120,1738692643871,-171.342047,0.00016438,2]
[351657122,1738692643880,-579.76012847,0.00016438,2]
[351657124,1738692643890,-151.0,0.00016438,2]
[351657126,1738692643900,-500.0,0.00016438,2]
[351657128,1738692643910,-500.0,0.00016438,2]
[351657130,1738692643919,-171.342047,0.00016438,2]
[351657132,1738692643929,-500.0,0.00016438,2]
[351657134,1738692643938,-171.342047,0.00016438,2]
[351657136,1738692643948,-500.0,0.00016438,2]
[351657138,1738692643957,-151.0,0.00016438,2]
[351657140,1738692643966,-151.0,0.00016438,2]
[351657142,1738692643976,-500.0,0.00016438,2]
[351657144,1738692643985,-500.0,0.00016438,2]
[351657146,1738692643994,-500.0,0.00016438,2]
[351657148,1738692644004,-500.0,0.00016438,2]
[351657150,1738692644013,-500.0,0.00016438,2]
[351657152,1738692644022,-500.0,0.00016438,2]
[351657154,1738692644032,-500.0,0.00016438,2]
[351657156,1738692644042,-500.0,0.00016438,2]
[351657158,1738692644053,-500.0,0.00016438,2]
[351657160,1738692644062,-503.65403261,0.00016438,2]
[351657162,1738692644071,-500.0,0.00016438,2]
[351657164,1738692644083,-597.31284598,0.00016438,2]
[351657165,1738692644092,-500.0,0.00016438,2]
[351657167,1738692644102,-240.09495485,0.00016438,2]
[351657187,1738692644292,-259.90504515,0.00016438,2]
[351657189,1738692644305,-500.0,0.00016438,2]
[351657191,1738692644315,-522.6,0.00016438,2]
[351657193,1738692644324,-500.0,0.00016438,2]
[351657196,1738692644334,-500.0,0.00016438,2]
[351657198,1738692644344,-500.0,0.00016438,2]
[351657200,1738692644353,-524.11,0.00016438,2]
[351657201,1738692644363,-500.0,0.00016438,2]
[351657204,1738692644372,-360.07393806,0.00016438,2]
[351657233,1738692644646,-139.92606194,0.00016438,2]
[351657235,1738692644656,-151.0,0.00016438,2]
[351657237,1738692644666,-151.0,0.00016438,2]
[351657238,1738692644675,-500.0,0.00016438,2]
[351657240,1738692644684,-500.0,0.00016438,2]
[351657257,1738692644827,-514.56,0.00016438,2]
[351657259,1738692644838,-500.0,0.00016438,2]
[351657261,1738692644849,-500.0,0.00016438,2]
[351657263,1738692644858,-500.0,0.00016438,2]
[351657265,1738692644868,-500.0,0.00016438,2]
[351657267,1738692644878,-500.0,0.00016438,2]
[351657269,1738692644888,-500.0,0.00016438,2]
[351657271,1738692644898,-500.0,0.00016438,2]
[351657273,1738692644907,-576.51685798,0.00016438,2]
[351657275,1738692644917,-500.0,0.00016438,2]
[351657277,1738692644927,-500.0,0.00016438,2]
[351657279,1738692644936,-338.69575519,0.00016438,2]
[351657282,1738692644949,-161.30424481,0.00016438,2]
[351657284,1738692644959,-100.94470319,0.00016438,2]
[351657286,1738692644971,-399.05529681,0.00016438,2]
[351657288,1738692644981,-500.0,0.00016438,2]
[351657290,1738692644990,-500.0,0.00016438,2]
[351657292,1738692644999,-500.0,0.00016438,2]
[351657294,1738692645009,-500.0,0.00016438,2]
[351657296,1738692645018,-500.0,0.00016438,2]
[351657298,1738692645028,-500.0,0.00016438,2]
[351657300,1738692645037,-500.0,0.00016438,2]
[351657302,1738692645050,-934.77,0.00016438,2]
[351657304,1738692645059,-500.0,0.00016438,2]
[351657306,1738692645069,-500.0,0.00016438,2]
[351657308,1738692645079,-500.0,0.00016438,2]
[351657310,1738692645088,-391.23205319,0.00016438,2]
[351657312,1738692645101,-108.76794681,0.00016438,2]
[351657314,1738692645111,-500.0,0.00016438,2]
[351657316,1738692645122,-500.0,0.00016438,2]
[351657318,1738692645132,-500.0,0.00016438,2]
[351657320,1738692645141,-500.0,0.00016438,2]
[351657322,1738692645151,-500.0,0.00016438,2]
[351657324,1738692645161,-500.0,0.00016438,2]
[351657326,1738692645170,-500.0,0.00016438,2]
[351657328,1738692645181,-151.0,0.00016438,2]
[351657330,1738692645191,-151.0,0.00016438,2]
[351657332,1738692645200,-772.23,0.00016438,2]
[351657334,1738692645210,-510.57622991,0.00016438,2]
[351657336,1738692645219,-500.0,0.00016438,2]
[351657338,1738692645228,-500.0,0.00016438,2]
[351657340,1738692645237,-500.0,0.00016438,2]